bitfinex-derivatives/quotes_BNBF0:USTF0_20250529
["timestamp","ask_amount","ask_price","bid_price","bid_amount"]
[1748515482839,1.0118907,685.32,684.64,0.57131863]
[1748515483039,1.0118907,685.31,684.65,0.57131863]
[1748515483240,1.0118907,685.3,684.66,0.57131863]
[1748515483539,1.01260273,685.34,684.67,0.57131863]
[1748515483742,1.01156179,685.33,684.68,0.57113474]
[1748515483942,1.01260273,685.34,684.69,0.57113474]
[1748515484136,1.0113359,685.33,684.62,0.57034006]
[1748515484336,1.01260273,685.34,684.63,0.57100074]
[1748515484635,1.01260273,685.34,684.62,0.57034006]
[1748515484636,1.01139295,685.33,684.64,0.57100757]
[1748515484844,1.01139295,685.32,684.65,0.57100824]
[1748515485136,1.01138905,685.31,684.66,0.57101367]
[1748515485341,1.01138905,685.3,684.67,0.57101367]
[1748515485641,1.01138905,685.29,684.68,0.57101367]
[1748515485836,1.01260273,685.34,684.69,0.57101367]
[1748515485837,1.01138905,685.28,684.69,0.57101367]
[1748515486038,1.01138905,685.27,684.7,0.57086663]
[1748515486335,1.01110721,685.26,684.62,0.57034006]
[1748515486541,1.01109923,685.25,684.63,0.57087173]
[1748515486838,1.01109923,685.24,684.64,0.57087168]
[1748515487039,1.01109923,685.23,684.62,0.57034006]
[1748515487242,1.01112028,685.22,684.63,0.57086729]
[1748515487440,1.01112028,685.21,684.64,0.57086729]
[1748515487742,1.01112028,685.2,684.65,0.57086729]
[1748515487936,1.01097497,685.19,684.66,0.57075184]
[1748515488137,1.01097497,685.18,684.67,0.57075184]
[1748515488336,1.01260273,685.34,684.68,0.57075187]
[1748515488539,1.01097331,685.33,684.62,0.57034006]
[1748515488741,1.01097096,685.32,684.63,0.57075187]
[1748515488941,1.01097096,685.31,684.64,0.57075187]
[1748515489143,1.01097096,685.3,684.65,0.57075187]
[1748515489344,1.01097096,685.29,684.66,0.57075187]
[1748515489543,1.01260273,685.34,684.67,0.57065153]
[1748515489544,1.0107967,685.28,684.67,0.57065153]
[1748515489844,1.01260273,685.34,684.68,0.57065626]
[1748515489845,1.01079014,685.27,684.68,0.57065626]
[1748515490044,1.01260273,685.34,684.62,0.57034006]
[1748515490641,1.01067954,685.33,684.62,0.57034006]
[1748515490842,1.01067251,685.32,684.62,0.57034006]
[1748515491041,1.01260273,685.34,684.62,0.57034006]
[1748515491241,1.01066811,685.33,684.62,0.57034006]
[1748515491440,1.01260273,685.34,684.62,0.57034006]
[1748515491646,1.01260273,685.34,684.63,0.57059435]
[1748515491847,1.01070804,685.33,684.62,0.57034006]
[1748515492046,1.01260273,685.34,684.62,0.57034006]
[1748515492245,1.01072128,685.33,684.62,0.57034006]
[1748515492546,1.01260273,685.34,684.62,0.57034006]
[1748515493248,1.01073925,685.33,684.62,0.57034006]
[1748515493448,1.01074313,685.32,684.62,0.57034006]
[1748515493645,1.01069783,685.31,684.62,0.57034006]
[1748515493850,1.01260273,685.34,684.62,0.57034006]
[1748515494350,1.01260273,685.34,684.63,0.57055807]
[1748515494649,1.01260273,685.34,684.62,0.57034006]
[1748515494845,1.01260273,685.34,684.63,0.57055766]
[1748515495047,1.01069561,685.33,684.64,0.57055766]
[1748515495251,1.01260273,685.34,684.62,0.57034006]
[1748515495451,1.01260273,685.34,684.63,0.57054481]
[1748515495651,1.01260273,685.34,684.62,0.57034006]
[1748515496148,1.01260273,685.34,684.63,0.57054851]
[1748515496447,1.01260273,685.34,684.62,0.57034006]
[1748515496448,1.01035879,685.33,684.62,0.57034006]
[1748515496751,1.01260273,685.34,684.62,0.57034006]
[1748515497651,1.01260273,685.34,684.63,0.57053505]
[1748515497652,1.01043873,685.33,684.63,0.57053505]
[1748515497846,1.01260273,685.34,684.62,0.57034006]
[1748515498448,1.01043707,685.33,684.63,0.57053387]
[1748515498647,1.01043909,685.32,684.62,0.57034006]
[1748515498846,1.01043341,685.31,684.62,0.57034006]
[1748515499047,1.01043504,685.3,684.62,0.57034006]
[1748515499247,1.01043284,685.29,684.62,0.57034006]
[1748515499450,1.01043242,685.28,684.62,0.57034006]
[1748515499649,1.01260273,685.34,684.62,0.57034006]
[1748515499849,1.01046104,685.33,684.62,0.57034006]
[1748515500153,1.01260273,685.34,684.62,0.57034006]
[1748515501249,1.01045822,685.33,684.63,0.57054631]
[1748515501448,1.01260273,685.34,684.64,0.57054632]
[1748515501649,1.01260273,685.34,684.62,0.57034006]
[1748515502353,1.01046716,685.33,684.62,0.57034006]
[1748515503153,1.01046165,685.32,684.62,0.57034006]
[1748515503453,1.01046716,685.33,684.62,0.57034006]
[1748515504054,1.01046716,685.33,684.63,0.57061039]
[1748515504250,1.01046716,685.33,684.62,0.57034006]
[1748515504451,1.01045684,685.32,684.62,0.57034006]
[1748515504653,1.01046716,685.33,684.62,0.57034006]
[1748515504853,1.01044154,685.32,684.63,0.528]
[1748515505056,1.01046716,685.33,684.64,0.5706953]
[1748515505260,1.01039291,685.32,684.63,0.528]
[1748515505455,1.01046716,685.33,684.63,0.528]
[1748515505456,1.01019126,685.31,684.63,0.528]
[1748515505653,1.01046716,685.33,684.64,0.57069582]
[1748515505854,1.01046716,685.33,684.63,0.528]
[1748515506556,1.01046716,685.33,684.64,0.57085114]
[1748515506757,1.01038462,685.32,684.65,0.57085114]
[1748515506949,1.01046716,685.33,684.63,0.528]
[1748515508158,1.01046716,685.33,684.64,0.57117366]
[1748515508359,1.01046716,685.33,684.63,0.528]
[1748515508859,1.01046716,685.33,684.64,0.57117298]
[1748515509058,1.01046716,685.33,684.63,0.528]
[1748515509257,1.01046716,685.33,684.64,0.57117388]
[1748515509459,1.01046716,685.33,684.63,0.528]
[1748515509756,1.01046716,685.33,684.64,0.57117365]
[1748515510060,1.01035294,685.32,684.65,0.57117365]
[1748515510260,1.01035294,685.31,684.66,0.57117365]
[1748515510457,1.01039511,685.3,684.67,0.57119605]
[1748515510662,1.01039304,685.29,684.63,0.528]
[1748515510856,1.01039412,685.28,684.63,0.528]
[1748515511055,1.01046716,685.33,684.64,0.57119679]
[1748515511056,1.0103936,685.27,684.64,0.57119679]
[1748515511261,1.0103936,685.26,684.65,0.57119679]
[1748515511457,1.01039633,685.25,684.66,0.57119488]
[1748515511658,1.01039633,685.24,684.63,0.528]
[1748515511861,1.01039633,685.23,684.64,0.57039617]
[1748515512062,1.01038873,685.22,684.65,0.57039865]
[1748515512264,1.01038932,685.21,684.63,0.528]
[1748515512459,1.01046716,685.33,684.63,0.528]
[1748515512657,1.01038985,685.32,684.64,0.57039816]
[1748515512862,1.01046716,685.33,684.63,0.528]
[1748515513564,1.01180691,685.32,684.63,0.528]
[1748515513764,1.01046716,685.33,684.63,0.528]
[1748515514863,1.01046716,685.33,684.64,0.57122583]
[1748515515166,1.01046716,685.33,684.63,0.528]
[1748515515866,1.01046716,685.33,684.64,0.57122678]
[1748515516061,1.01046716,685.33,684.63,0.528]
[1748515517360,1.01046716,685.33,684.64,0.57122685]
[1748515517564,1.01046716,685.33,684.63,0.528]
[1748515517764,1.01155566,685.32,684.63,0.528]
[1748515517960,1.01046716,685.33,684.63,0.528]
[1748515518264,1.01241517,685.32,684.64,0.57122596]
[1748515518466,1.01241415,685.31,684.65,0.57122648]
[1748515518667,1.01241354,685.3,684.63,0.528]
[1748515518862,1.01241774,685.29,684.63,0.528]
[1748515519062,1.01046716,685.33,684.63,0.528]
[1748515520066,1.01241339,685.32,684.64,0.57122773]
[1748515520368,1.01046716,685.33,684.63,0.528]
[1748515520863,1.01267321,685.32,684.63,0.528]
[1748515521069,1.01046716,685.33,684.63,0.528]
[1748515521269,1.01046716,685.33,684.64,0.57122546]
[1748515521468,1.01046716,685.33,684.63,0.528]
[1748515523164,1.01046716,685.33,684.64,0.57122584]
[1748515523368,1.01294447,685.32,684.63,0.528]
[1748515523668,1.01046716,685.33,684.63,0.528]
[1748515523867,1.01298519,685.32,684.63,0.528]
[1748515524164,1.01046716,685.33,684.63,0.528]
[1748515524664,1.01046716,685.33,684.64,0.57122816]
[1748515524866,1.01303952,685.32,684.63,0.528]
[1748515525070,1.01046716,685.33,684.63,0.528]
[1748515525266,1.01311596,685.32,684.64,0.57122819]
[1748515525570,1.01046716,685.33,684.65,0.57122819]
[1748515525767,1.01311928,685.32,684.63,0.528]
[1748515526070,1.01313856,685.31,684.64,0.5712288]
[1748515526369,1.01313856,685.3,684.65,0.5712288]
[1748515526566,1.01305517,685.29,684.66,0.5712288]
[1748515526770,1.01305038,685.28,684.67,0.5712288]
[1748515526967,1.01046716,685.33,684.68,0.57118449]
[1748515527168,1.01046716,685.33,684.63,0.528]
[1748515527371,1.01305252,685.32,684.64,0.57118449]
[1748515527567,1.01046716,685.33,684.65,0.57118449]
[1748515527770,1.01046716,685.33,684.63,0.528]
[1748515528573,1.01046716,685.33,684.64,0.57118478]
[1748515528771,1.01305271,685.32,684.63,0.528]
[1748515528968,1.01046716,685.33,684.63,0.528]
[1748515529169,1.01305198,685.32,684.63,0.528]
[1748515529368,1.01046716,685.33,684.63,0.528]
[1748515529572,1.01308731,685.32,684.63,0.528]
[1748515529775,1.01308731,685.31,684.63,0.528]
[1748515529973,1.01046716,685.33,684.63,0.528]
[1748515530174,1.01308868,685.32,684.63,0.528]
[1748515530375,1.01046716,685.33,684.64,0.57113335]
[1748515530573,1.01046716,685.33,684.65,0.57113382]
[1748515530574,1.01273154,685.32,684.65,0.57113382]
[1748515530771,1.01046716,685.33,684.63,0.528]
[1748515531770,1.01272328,685.32,684.63,0.528]
[1748515531972,1.01046716,685.33,684.64,0.57113379]
[1748515532170,1.01046716,685.33,684.65,0.5711323]
[1748515532374,1.01268966,685.32,684.66,0.5711323]
[1748515532671,1.01046716,685.33,684.63,0.528]
[1748515532872,1.01266779,685.32,684.63,0.528]
[1748515533075,1.01046716,685.33,684.63,0.528]
[1748515533271,1.01269331,685.32,684.63,0.528]
[1748515533573,1.01269942,685.31,684.64,0.57113327]
[1748515533778,1.01046716,685.33,684.63,0.528]
[1748515534175,1.01269553,685.32,684.63,0.528]
[1748515534383,1.01046716,685.33,684.64,0.57113418]
[1748515534573,1.01046716,685.33,684.65,0.57113419]
[1748515534776,1.01268777,685.32,684.66,0.57113439]
[1748515534977,1.01046716,685.33,684.63,0.528]
[1748515534978,1.01268777,685.31,684.67,0.57113439]
[1748515535173,1.01268777,685.3,684.68,0.57113439]
[1748515535478,1.01267201,685.29,684.69,0.57112688]
[1748515535678,1.01264954,685.28,684.7,0.57112757]
[1748515535879,1.01046716,685.33,684.71,0.57112757]
[1748515536078,1.01046716,685.33,684.72,0.57112757]
[1748515536378,1.01263035,685.32,684.73,0.57112689]
[1748515536579,1.01263035,685.31,684.74,0.57112689]
[1748515536775,1.01263035,685.3,684.75,0.57112689]
[1748515536976,1.01263766,685.29,684.76,0.57112476]
[1748515537279,1.01264325,685.28,684.77,0.57112539]
[1748515537480,1.01046716,685.33,684.62,0.57034006]
[1748515537681,1.01265486,685.32,684.63,0.57112439]
[1748515537879,1.01265486,685.32,684.62,0.57034006]
[1748515537880,1.01265486,685.31,684.64,0.57112439]
[1748515538076,1.01265486,685.3,684.65,0.57112439]
[1748515538281,1.01265486,685.29,684.66,0.57112439]
[1748515538482,1.01267505,685.28,684.67,0.57113248]
[1748515538677,1.01267505,685.27,684.68,0.57113248]
[1748515538883,1.01267505,685.26,684.69,0.57113248]
[1748515539081,1.01267505,685.25,684.7,0.57113248]
[1748515539281,1.01046716,685.33,684.62,0.57034006]
[1748515539481,1.01267235,685.32,684.62,0.57034006]
[1748515539679,1.01046716,685.33,684.63,1.13313618]
[1748515539879,1.01046716,685.33,684.63,0.562]
[1748515540583,1.0127526,685.32,684.63,0.562]
[1748515540778,1.01046716,685.33,684.63,0.562]
[1748515540983,1.01046716,685.33,684.64,0.57116729]
[1748515541188,1.01046716,685.33,684.65,0.57116729]
[1748515541485,1.01046716,685.33,684.63,0.562]
[1748515541682,1.01046716,685.33,684.64,0.57116729]
[1748515541883,1.01275269,685.32,684.63,0.562]
[1748515542078,1.01286229,685.31,684.64,0.57122807]
[1748515542280,1.01046716,685.33,684.63,0.562]
[1748515542683,1.01298182,685.32,684.63,0.562]
[1748515542880,1.01046716,685.33,684.63,0.562]
[1748515543082,1.01313109,685.32,684.64,0.5712994]
[1748515543378,1.01046716,685.33,684.63,0.562]
[1748515544079,1.01353234,685.32,684.64,0.57141118]
[1748515544277,1.01353234,685.32,684.63,0.562]
[1748515544278,1.01351236,685.31,684.63,0.562]
[1748515544481,1.01046716,685.33,684.63,0.562]
[1748515545084,1.01354807,685.32,684.64,0.57141172]
[1748515545381,1.01046716,685.33,684.65,0.57141798]
[1748515545580,1.01046716,685.33,684.63,0.562]
[1748515545782,1.01046716,685.33,684.64,0.57142365]
[1748515545986,1.01358811,685.32,684.65,0.57142154]
[1748515546181,1.01046716,685.33,684.65,0.57142154]
[1748515546485,1.01046716,685.33,684.63,0.562]
[1748515546983,1.01046716,685.33,684.64,0.57142188]
[1748515547183,1.01046716,685.33,684.63,0.562]
[1748515547384,1.01046716,685.33,684.64,0.57142282]
[1748515547581,1.01368115,685.32,684.65,0.57142282]
[1748515547785,1.01046716,685.33,684.63,0.562]
[1748515549385,1.01415295,685.32,684.64,0.5714919]
[1748515550287,1.01424952,685.31,684.65,0.57154179]
[1748515550584,1.01046716,685.33,684.63,0.562]
[1748515551985,1.01415012,685.32,684.63,0.562]
[1748515552190,1.01046716,685.33,684.63,0.562]
[1748515552391,1.01415667,685.32,684.63,0.562]
[1748515552592,1.01046716,685.33,684.63,0.562]
[1748515552986,1.01046716,685.33,684.64,0.57134384]
[1748515553287,1.01046716,685.33,684.63,0.562]
[1748515553993,1.01046716,685.33,684.64,0.57134784]
[1748515554186,1.01046716,685.33,684.63,0.562]
[1748515554487,1.01046716,685.33,684.64,0.57134784]
[1748515554692,1.0141414,685.32,684.63,0.562]
[1748515554891,1.01046716,685.33,684.64,0.57134699]
[1748515555093,1.01414754,685.32,684.63,0.562]
[1748515555295,1.01046716,685.33,684.63,0.562]
[1748515555593,1.01046716,685.33,684.64,0.57134576]
[1748515555788,1.01046716,685.33,684.63,0.562]
[1748515555988,1.01046716,685.33,684.64,0.57134419]
[1748515556189,1.01414711,685.32,684.63,0.562]
[1748515556489,1.01046716,685.33,684.64,0.57134419]
[1748515556690,1.01414531,685.32,684.65,0.57134419]
[1748515556892,1.01413355,685.31,684.66,0.57134419]
[1748515557089,1.01413355,685.3,684.67,0.57134799]
[1748515557293,1.01414793,685.29,684.68,0.57135525]
[1748515557494,1.01046716,685.33,684.63,0.562]
[1748515557689,1.01398994,685.32,684.64,0.57135525]
[1748515557892,1.01398994,685.32,684.63,0.562]
[1748515557893,1.01046716,685.33,684.63,0.562]
[1748515558093,1.01399992,685.32,684.64,0.57135331]
[1748515558291,1.01046716,685.33,684.63,0.562]
[1748515558590,1.01401223,685.32,684.64,0.57135495]
[1748515558793,1.01401223,685.31,684.63,0.562]
[1748515558993,1.0140056,685.3,684.64,0.5713534]
[1748515559194,1.01046716,685.33,684.63,0.562]
[1748515559396,1.01400515,685.32,684.64,0.5713534]
[1748515559690,1.0140066,685.31,684.65,0.57135288]
[1748515559890,1.01400701,685.3,684.63,0.562]
[1748515560097,1.01400701,685.29,684.64,0.57135288]
[1748515560293,1.01400354,685.28,684.65,0.57135288]
[1748515560498,1.01046716,685.33,684.63,0.562]
[1748515560994,1.01399335,685.32,684.64,0.5713551]
[1748515561199,1.01400567,685.31,684.65,0.57135305]
[1748515561396,1.01046716,685.33,684.63,0.562]
[1748515561596,1.01400663,685.32,684.64,0.57135305]
[1748515561798,1.01046716,685.33,684.63,0.562]
[1748515562200,1.01397855,685.32,684.64,0.57135483]
[1748515562394,1.01046716,685.33,684.63,0.562]
[1748515564500,1.01399137,685.32,684.64,0.57134831]
[1748515564700,1.01399552,685.31,684.65,0.57134831]
[1748515565000,1.01046716,685.33,684.66,0.5713473]
[1748515565203,1.01046716,685.33,684.63,0.562]
[1748515565902,1.01413308,685.32,684.63,0.562]
[1748515566097,1.01046716,685.33,684.64,0.57135312]
[1748515566298,1.01046716,685.33,684.63,0.562]
[1748515566802,1.01459167,685.32,684.63,0.562]
[1748515567003,1.01046716,685.33,684.63,0.562]
[1748515567598,1.01046716,685.33,684.64,0.57135843]
[1748515567803,1.01046716,685.33,684.63,0.562]
[1748515568801,1.01046716,685.33,684.64,0.57135446]
[1748515569006,1.01046716,685.33,684.65,0.57135394]
[1748515569206,1.01463923,685.32,684.63,0.562]
[1748515569505,1.01046716,685.33,684.64,0.57135394]
[1748515569705,1.01046716,685.33,684.63,0.562]
[1748515569906,1.01046716,685.33,684.64,0.57135435]
[1748515570204,1.01046716,685.33,684.63,0.562]
[1748515570405,1.01457206,685.32,684.64,0.57135486]
[1748515570605,1.01457206,685.31,684.65,0.57135486]
[1748515570807,1.01454667,685.3,684.66,0.57135383]
[1748515571007,1.01457021,685.29,684.67,0.57170355]
[1748515571205,1.01046716,685.33,684.68,0.57170355]
[1748515571408,1.01046716,685.33,684.63,0.562]
[1748515571604,1.01472883,685.32,684.63,0.562]
[1748515571808,1.01046716,685.33,684.63,0.562]
[1748515572308,1.01046716,685.33,684.64,0.57170373]
[1748515572504,1.01046716,685.33,684.63,0.562]
[1748515572708,1.01046716,685.33,684.64,0.57170592]
[1748515572908,1.01046716,685.33,684.63,0.562]
[1748515574008,1.01046716,685.33,684.64,0.57135433]
[1748515574209,1.01046716,685.33,684.65,0.57135433]
[1748515574410,1.01046716,685.33,684.63,0.562]
[1748515575812,1.01046716,685.33,684.64,0.57135289]
[1748515576013,1.01513457,685.32,684.65,0.57135295]
[1748515576214,1.01512816,685.31,684.63,0.562]
[1748515576409,1.01046716,685.33,684.63,0.562]
[1748515576909,1.0151384,685.32,684.64,0.57135402]
[1748515577112,1.01046716,685.33,684.63,0.562]
[1748515577308,1.01514997,685.32,684.63,0.562]
[1748515577510,1.01046716,685.33,684.63,0.562]
[1748515578115,1.01046716,685.33,684.64,0.57135402]
[1748515578315,1.01046716,685.33,684.63,0.562]
[1748515578509,1.01513572,685.32,684.64,0.57135363]
[1748515578713,1.01046716,685.33,684.63,0.562]
[1748515579615,1.01046716,685.33,684.64,0.57135347]
[1748515579811,1.01046716,685.33,684.65,0.57135347]
[1748515580014,1.01046716,685.33,684.63,0.562]
[1748515580211,1.01046716,685.33,684.64,0.57135461]
[1748515580414,1.01046716,685.33,684.63,0.562]
[1748515580710,1.01512911,685.32,684.64,0.5713558]
[1748515580915,1.01046716,685.33,684.63,0.562]
[1748515581216,1.01046716,685.33,684.64,0.57136024]
[1748515581411,1.01531795,685.32,684.63,0.562]
[1748515581612,1.01046716,685.33,684.62,0.57034006]
[1748515581816,1.01046716,685.33,684.63,0.57135783]
[1748515582017,1.01046716,685.33,684.62,0.57034006]
[1748515582420,1.01046716,685.33,684.63,0.57135748]
[1748515582718,1.01046716,685.33,684.62,0.57034006]
[1748515582918,1.01533318,685.32,684.63,0.57135836]
[1748515583118,1.01046716,685.33,684.62,0.57034006]
[1748515583419,1.01046716,685.33,684.63,0.57135756]
[1748515583614,1.01046716,685.33,684.64,0.57135808]
[1748515583818,1.01046716,685.33,684.64,0.729]
[1748515584320,1.01537989,685.32,684.65,0.57135756]
[1748515584520,1.01537989,685.32,684.64,0.729]
[1748515584521,1.01537989,685.31,684.66,0.57135756]
[1748515584712,1.01537989,685.3,684.67,0.57135756]
[1748515584915,1.0153969,685.29,684.64,0.729]
[1748515585113,1.0153969,685.28,684.65,0.57135467]
[1748515585415,1.01538912,685.27,684.66,0.57135463]
[1748515585718,1.01538912,685.26,684.67,0.57135463]
[1748515585919,1.01538912,685.25,684.68,0.57135463]
[1748515586114,1.01538912,685.24,684.69,0.57135463]
[1748515586319,1.01538912,685.23,684.7,0.57135463]
[1748515586518,1.01545915,685.22,684.71,0.57135463]
[1748515586818,1.0154857,685.21,684.72,0.57138626]
[1748515587019,1.0154857,685.2,684.73,0.57138626]
[1748515587321,1.01548396,685.19,684.74,0.57138626]
[1748515587518,1.01548396,685.18,684.75,0.57138626]
[1748515587821,1.01548396,685.17,684.76,0.57138626]
[1748515588122,1.0157065,685.16,684.77,0.57139251]
[1748515588421,1.01602664,685.15,684.78,0.57139422]
[1748515588615,1.01046716,685.33,684.64,0.729]
[1748515589923,1.01046716,685.33,684.65,0.57139473]
[1748515590122,1.01046716,685.33,684.64,0.729]
[1748515590818,1.01551302,685.32,684.64,0.729]
[1748515591020,1.01046716,685.33,684.64,0.729]
[1748515592319,1.01537672,685.32,684.64,0.729]
[1748515592524,1.01046716,685.33,684.65,0.57138893]
[1748515592720,1.01533718,685.32,684.64,0.729]
[1748515592921,1.01046716,685.33,684.64,0.729]
[1748515593721,1.01529095,685.32,684.64,0.729]
[1748515593928,1.01521993,685.31,684.64,0.729]
[1748515594125,1.01046716,685.33,684.64,0.729]
[1748515595128,1.01514835,685.32,684.65,0.57138883]
[1748515595327,1.01046716,685.33,684.66,0.57139226]
[1748515595328,1.01514835,685.31,684.66,0.57139226]
[1748515595528,1.01514835,685.3,684.67,0.57139236]
[1748515595827,1.0151507,685.29,684.68,0.57139233]
[1748515596030,1.01558221,685.28,684.69,0.57139186]
[1748515596223,1.01558221,685.27,684.7,0.57139181]
[1748515596423,1.01558221,685.26,684.71,0.57139181]
[1748515596727,1.01558221,685.25,684.72,0.57139181]
[1748515596930,1.01558221,685.24,684.73,0.57139181]
[1748515597132,1.01559466,685.23,684.74,0.57139265]
[1748515597332,1.01559466,685.22,684.75,0.57139317]
[1748515597634,1.01558896,685.21,684.76,0.57139367]
[1748515597831,1.01559051,685.2,684.77,0.57139367]
[1748515598032,1.01559717,685.19,684.78,0.57139214]
[1748515598226,1.01559717,685.18,684.79,0.57139291]
[1748515598429,1.01559717,685.17,684.8,0.57139291]
[1748515598627,1.01559717,685.16,684.81,0.57139291]
[1748515598831,1.01559717,685.15,684.82,0.57139291]
[1748515599029,1.01559391,685.14,684.83,0.57139291]
[1748515599234,1.01559343,685.13,684.64,0.729]
[1748515599434,1.01559343,685.12,684.65,0.57139331]
[1748515599631,1.01559343,685.11,684.66,0.57139331]
[1748515599828,1.01559343,685.1,684.67,0.57139331]
[1748515600032,1.01559343,685.09,684.68,0.57139331]
[1748515600233,1.01559343,685.09,684.64,0.729]
[1748515600234,1.01559488,685.08,684.64,0.729]
[1748515600431,1.01046716,685.33,684.64,0.729]
[1748515600634,1.01561831,685.32,684.65,0.57139187]
[1748515600835,1.01563297,685.31,684.66,0.57139029]
[1748515601031,1.01046716,685.33,684.67,0.57138739]
[1748515601233,1.01563833,685.32,684.68,0.57138751]
[1748515601428,1.01046716,685.33,684.69,0.57138751]
[1748515601429,1.01563833,685.31,684.69,0.57138751]
[1748515601632,1.01570877,685.3,684.7,0.57133789]
[1748515601833,1.01570877,685.29,684.71,0.57133789]
[1748515602033,1.01570877,685.28,684.72,0.57133789]
[1748515602231,1.01046716,685.33,684.73,0.57133789]
[1748515602435,1.01046716,685.33,684.64,0.729]
[1748515602929,1.01569378,685.32,684.65,0.5713278]
[1748515603129,1.01569293,685.31,684.66,0.5713278]
[1748515603333,1.01569287,685.3,684.67,0.57132767]
[1748515603536,1.0156952,685.29,684.64,0.729]
[1748515603735,1.0156952,685.28,684.65,0.57132767]
[1748515603932,1.0156952,685.28,684.64,0.729]
[1748515603933,1.01568116,685.27,684.66,0.57132053]
[1748515604238,1.01046716,685.33,684.64,0.729]
[1748515604239,1.01046716,685.33,684.67,0.57132105]
[1748515604538,1.01567972,685.32,684.68,0.57132105]
[1748515604738,1.01567972,685.31,684.69,0.57132105]
[1748515604932,1.01046716,685.33,684.7,0.57132105]
[1748515605133,1.01567454,685.32,684.71,0.57131987]
[1748515605334,1.01046716,685.33,684.72,0.57131987]
[1748515605531,1.01567564,685.32,684.73,0.57131987]
[1748515605738,1.01567564,685.31,684.74,0.57131987]
[1748515605935,1.01046716,685.33,684.64,0.729]
[1748515606135,1.01567772,685.32,684.65,0.57131813]
[1748515606336,1.01567772,685.31,684.66,0.57131813]
[1748515606537,1.01567148,685.3,684.67,0.57131813]
[1748515606837,1.01566996,685.29,684.68,0.57131813]
[1748515607032,1.01567544,685.28,684.69,0.57131945]
[1748515607238,1.01567657,685.27,684.7,0.57131968]
[1748515607434,1.01567538,685.26,684.71,0.57131968]
[1748515607637,1.01567538,685.25,684.72,0.57131968]
[1748515607937,1.01046716,685.33,684.73,0.57132185]
[1748515608133,1.01568789,685.32,684.74,0.57132185]
[1748515608340,1.0156879,685.31,684.75,0.57132185]
[1748515608537,1.0156879,685.3,684.76,0.57132185]
[1748515608733,1.01569966,685.29,684.64,0.729]
[1748515608935,1.01046716,685.33,684.37,0.46445209]
[1748515609234,1.01046716,685.33,684.08,0.71846762]
[1748515609432,1.01571323,685.32,684.38,0.5713122]
[1748515609632,1.01046716,685.33,684.09,0.29235919]
[1748515609933,1.01046716,685.33,684.1,0.5713124]
[1748515610135,1.01569536,685.32,684.11,0.29235064]
[1748515610331,1.01046716,685.33,684.11,0.29235064]
[1748515610534,1.01046716,685.33,684.12,0.542]
[1748515611238,1.01569435,685.32,684.12,0.542]
[1748515611435,1.01046716,685.33,684.12,0.542]
[1748515612237,1.01571343,685.32,684.13,0.57130724]
[1748515612438,1.01571343,685.31,684.14,0.57130724]
[1748515612738,1.01571343,685.3,684.15,0.57130724]
[1748515612934,1.01571343,685.29,684.16,0.57131085]
[1748515613135,1.01046716,685.33,684.12,0.542]
[1748515613337,1.01570099,685.32,684.13,0.57131085]
[1748515613536,1.01046716,685.33,684.14,0.57131085]
[1748515613737,1.01046716,685.33,684.12,0.542]
[1748515613738,1.01569924,685.32,684.12,0.542]
[1748515613937,1.01046716,685.33,684.12,0.542]
[1748515614234,1.01570521,685.32,684.13,0.29234209]
[1748515614534,1.01046716,685.33,684.37,0.46445209]
[1748515614737,1.01046716,685.33,684.38,0.57125464]
[1748515614935,1.01046716,685.33,684.36,0.46445209]
[1748515615132,1.01046716,685.33,684.52,0.46445209]
[1748515615336,1.01046716,685.33,684.53,1.03568741]
[1748515615639,1.01046716,685.33,684.49,0.46445209]
[1748515616034,1.01582135,685.32,684.5,0.57155588]
[1748515616238,1.01582135,685.32,684.49,0.46445209]
[1748515616239,1.01582954,685.31,684.51,0.57155476]
[1748515616440,1.01582954,685.3,684.52,0.57155476]
[1748515616640,1.01386691,685.29,684.53,0.57044208]
[1748515616835,1.01386714,685.28,684.54,0.570442]
[1748515617140,1.01046716,685.33,684.55,0.570442]
[1748515617141,1.01386714,685.27,684.55,0.570442]
[1748515617334,1.01386714,685.26,684.56,0.570442]
[1748515617534,1.01046716,685.33,684.48,0.46445209]
[1748515617737,1.01312128,685.32,684.49,0.56998995]
[1748515618040,1.01311965,685.31,684.5,0.56999025]
[1748515618233,1.01311965,685.31,684.13,0.29234209]
[1748515618234,1.01311996,685.3,684.51,0.56999025]
[1748515618437,1.01311996,685.29,684.52,0.56999025]
[1748515618639,1.01311996,685.28,684.53,0.56999025]
[1748515618940,1.0126292,685.27,684.54,0.56999025]
[1748515619140,1.0126292,685.26,684.55,0.56999025]
[1748515619436,1.01205064,685.32,684.56,0.56953329]
[1748515619638,1.01205208,685.31,684.57,0.56953222]
[1748515619839,1.01046716,685.33,684.34,0.46445209]